Publisher Label,Publisher URI,"Payment Date","Organisational Unit","Beneficiary Name","Purpose","Amount (£)","Irrecoverable VAT Amount (£)","Merchant Category Code"
"Wolverhampton City Council","http://opendatacommunities.org/id/metropolitan-district-council/wolverhampton","09/02/2017","Governance","ADARE LTD","Comms - Postage","2831.65","0.00","4812"
"Wolverhampton City Council","http://opendatacommunities.org/id/metropolitan-district-council/wolverhampton","09/02/2017","Governance","ADARE LTD","Comms - Postage","5208.47","0.00","4812"
"Wolverhampton City Council","http://opendatacommunities.org/id/metropolitan-district-council/wolverhampton","14/02/2017","Pension Operations","Barnett Waddingham LLP","Actuarial Fees","13405.00","0.00","6012"
"Wolverhampton City Council","http://opendatacommunities.org/id/metropolitan-district-council/wolverhampton","14/02/2017","Pension Operations","Barnett Waddingham LLP","Actuarial Fees","8410.00","0.00","6012"
"Wolverhampton City Council","http://opendatacommunities.org/id/metropolitan-district-council/wolverhampton","14/02/2017","Pension Operations","Barnett Waddingham LLP","Actuarial Fees","14710.00","0.00","6012"
"Wolverhampton City Council","http://opendatacommunities.org/id/metropolitan-district-council/wolverhampton","21/02/2017","Pension Operations","Barnett Waddingham LLP","Actuarial Fees","9702.50","0.00","6012"
"Wolverhampton City Council","http://opendatacommunities.org/id/metropolitan-district-council/wolverhampton","21/02/2017","Pension Operations","Barnett Waddingham LLP","Actuarial Fees","17400.00","0.00","6012"
"Wolverhampton City Council","http://opendatacommunities.org/id/metropolitan-district-council/wolverhampton","21/02/2017","Pension Operations","Barnett Waddingham LLP","Actuarial Fees","22830.00","0.00","6012"
"Wolverhampton City Council","http://opendatacommunities.org/id/metropolitan-district-council/wolverhampton","21/02/2017","Pension Operations","Barnett Waddingham LLP","Actuarial Fees","1947.50","0.00","6012"
"Wolverhampton City Council","http://opendatacommunities.org/id/metropolitan-district-council/wolverhampton","21/02/2017","Pension Operations","Barnett Waddingham LLP","Actuarial Fees","6247.50","0.00","6012"
"Wolverhampton City Council","http://opendatacommunities.org/id/metropolitan-district-council/wolverhampton","21/02/2017","Pension Operations","Barnett Waddingham LLP","Actuarial Fees","1520.00","0.00","6012"
"Wolverhampton City Council","http://opendatacommunities.org/id/metropolitan-district-council/wolverhampton","20/03/2017","Governance","BIRMINGHAM CITY COUNCIL","Comms - Postage","3343.41","0.00","9399"
"Wolverhampton City Council","http://opendatacommunities.org/id/metropolitan-district-council/wolverhampton","23/01/2017","Governance","BIRMINGHAM CITY COUNCIL","Comms - Postage","2553.63","0.00","9399"
"Wolverhampton City Council","http://opendatacommunities.org/id/metropolitan-district-council/wolverhampton","01/03/2017","Governance","BIRMINGHAM CITY COUNCIL","Comms - Postage","2293.52","0.00","9399"
"Wolverhampton City Council","http://opendatacommunities.org/id/metropolitan-district-council/wolverhampton","31/03/2017","Governance","BPP Professional Education Limited","Training Expenses","501.00","0.00","8299"
"Wolverhampton City Council","http://opendatacommunities.org/id/metropolitan-district-council/wolverhampton","31/03/2017","Governance","BPP Professional Education Limited","Training Expenses","501.00","0.00","8299"
"Wolverhampton City Council","http://opendatacommunities.org/id/metropolitan-district-council/wolverhampton","23/02/2017","Investments Fund Account","BPP Professional Education Limited","Training Expenses","734.00","0.00","8299"
"Wolverhampton City Council","http://opendatacommunities.org/id/metropolitan-district-council/wolverhampton","31/03/2017","Pension Operations","Brook Street (UK) Ltd","Agency Staff","684.29","0.00","7361"
"Wolverhampton City Council","http://opendatacommunities.org/id/metropolitan-district-council/wolverhampton","01/03/2017","Pension Operations","Brook Street (UK) Ltd","Agency Staff","655.67","0.00","7361"
"Wolverhampton City Council","http://opendatacommunities.org/id/metropolitan-district-council/wolverhampton","20/03/2017","Pension Operations","Brook Street (UK) Ltd","Agency Staff","700.97","0.00","7361"
"Wolverhampton City Council","http://opendatacommunities.org/id/metropolitan-district-council/wolverhampton","24/02/2017","Pension Operations","Brook Street (UK) Ltd","Agency Staff","655.67","0.00","7361"
"Wolverhampton City Council","http://opendatacommunities.org/id/metropolitan-district-council/wolverhampton","14/02/2017","Financial Services","CIPFA BUSINESS LIMITED","Conference Expenses","530.00","0.00","8999"
"Wolverhampton City Council","http://opendatacommunities.org/id/metropolitan-district-council/wolverhampton","10/04/2017","Financial Services","CIPFA BUSINESS LIMITED","Subscriptions","5510.00","0.00","8999"
"Wolverhampton City Council","http://opendatacommunities.org/id/metropolitan-district-council/wolverhampton","10/04/2017","Financial Services","CIPFA BUSINESS LIMITED","Services - Professional Fees","750.00","0.00","8999"
"Wolverhampton City Council","http://opendatacommunities.org/id/metropolitan-district-council/wolverhampton","20/03/2017","Pension Operations","CIVICA UK LIMITED","Computing - Maint Agreements","110872.41","0.00","5045"
"Wolverhampton City Council","http://opendatacommunities.org/id/metropolitan-district-council/wolverhampton","18/01/2017","Pension Operations","CIVICA UK LIMITED","Computing - Maint Agreements","10000.00","0.00","5045"
"Wolverhampton City Council","http://opendatacommunities.org/id/metropolitan-district-council/wolverhampton","14/03/2017","Pension Operations","CIVICA UK LIMITED","Computing - Maint Agreements","12000.00","0.00","5045"
"Wolverhampton City Council","http://opendatacommunities.org/id/metropolitan-district-council/wolverhampton","14/02/2017","Governance","CIVICA UK LIMITED","Computing - Maint Agreements","6619.50","0.00","5045"
"Wolverhampton City Council","http://opendatacommunities.org/id/metropolitan-district-council/wolverhampton","18/01/2017","Pension Operations","Deloitte LLP","Services - Professional Fees","16492.00","0.00","8999"
"Wolverhampton City Council","http://opendatacommunities.org/id/metropolitan-district-council/wolverhampton","28/02/2017","Governance","Dilys Jones Associates Ltd","Training Expenses","1600.00","0.00","8299"
"Wolverhampton City Council","http://opendatacommunities.org/id/metropolitan-district-council/wolverhampton","00/01/1900","Governance","Dilys Jones Associates Ltd","Training Expenses","1600.00","0.00","8299"
"Wolverhampton City Council","http://opendatacommunities.org/id/metropolitan-district-council/wolverhampton","18/01/2017","Property and legal fees","DLA Piper UK LLP","Property Management - Management Expenses","4303.99","0.00","8111"
"Wolverhampton City Council","http://opendatacommunities.org/id/metropolitan-district-council/wolverhampton","23/01/2017","Property and legal fees","DLA Piper UK LLP","Property Management - Management Expenses","67282.06","0.00","8111"
"Wolverhampton City Council","http://opendatacommunities.org/id/metropolitan-district-council/wolverhampton","20/03/2017","Property and legal fees","DLA Piper UK LLP","Property Management - Management Expenses","842.40","0.00","8111"
"Wolverhampton City Council","http://opendatacommunities.org/id/metropolitan-district-council/wolverhampton","01/03/2017","Governance","DTZ DTL LTD CLIENT AC:COMMONRECEIPTS","Rent","25624.32","0.00","7523"
"Wolverhampton City Council","http://opendatacommunities.org/id/metropolitan-district-council/wolverhampton","09/02/2017","Governance","DTZ DTL LTD CLIENT AC:COMMONRECEIPTS","Insurances - Premises","1530.69","0.00","7523"
"Wolverhampton City Council","http://opendatacommunities.org/id/metropolitan-district-council/wolverhampton","24/03/2017","Governance","EMB Excellence Ltd","Services - Professional Fees","5697.00","0.00","8999"
"Wolverhampton City Council","http://opendatacommunities.org/id/metropolitan-district-council/wolverhampton","23/01/2017","Pension Operations","Eversheds LLP","Services - Professional Fees","1053.00","0.00","8111"
"Wolverhampton City Council","http://opendatacommunities.org/id/metropolitan-district-council/wolverhampton","03/02/2017","LGPS Central","Eversheds LLP","Services - Professional Fees","2053.00","0.00","8111"
"Wolverhampton City Council","http://opendatacommunities.org/id/metropolitan-district-council/wolverhampton","03/02/2017","LGPS Central","Eversheds LLP","Services - Professional Fees","5556.50","0.00","8111"
"Wolverhampton City Council","http://opendatacommunities.org/id/metropolitan-district-council/wolverhampton","03/02/2017","LGPS Central","Eversheds LLP","Services - Professional Fees","6312.50","0.00","8111"
"Wolverhampton City Council","http://opendatacommunities.org/id/metropolitan-district-council/wolverhampton","03/02/2017","LGPS Central","Eversheds LLP","Services - Professional Fees","1170.00","0.00","8111"
"Wolverhampton City Council","http://opendatacommunities.org/id/metropolitan-district-council/wolverhampton","03/02/2017","LGPS Central","Eversheds LLP","Services - Professional Fees","15933.92","0.00","8111"
"Wolverhampton City Council","http://opendatacommunities.org/id/metropolitan-district-council/wolverhampton","03/02/2017","LGPS Central","Eversheds LLP","Services - Professional Fees","4785.90","0.00","8111"
"Wolverhampton City Council","http://opendatacommunities.org/id/metropolitan-district-council/wolverhampton","03/02/2017","LGPS Central","Eversheds LLP","Services - Professional Fees","3500.00","0.00","8111"
"Wolverhampton City Council","http://opendatacommunities.org/id/metropolitan-district-council/wolverhampton","14/02/2017","Governance","First Response First Aid Ltd","Training Expenses","1195.00","0.00","8299"
"Wolverhampton City Council","http://opendatacommunities.org/id/metropolitan-district-council/wolverhampton","21/03/2017","Investments Fund Account","FTSE INTERNATIONAL LTD","Services - General Licences","89665.00","0.00","5045"
"Wolverhampton City Council","http://opendatacommunities.org/id/metropolitan-district-council/wolverhampton","21/03/2017","Investments Fund Account","FTSE INTERNATIONAL LTD","Services - General Licences","9835.00","0.00","5045"
"Wolverhampton City Council","http://opendatacommunities.org/id/metropolitan-district-council/wolverhampton","03/02/2017","Governance","Goss Interactive Ltd","Training Expenses","1200.00","0.00","8299"
"Wolverhampton City Council","http://opendatacommunities.org/id/metropolitan-district-council/wolverhampton","15/03/2017","LGPS Central","Grand Station","Services - Professional Fees","2461.00","0.00","8999"
"Wolverhampton City Council","http://opendatacommunities.org/id/metropolitan-district-council/wolverhampton","10/03/2017","Financial Services","HYMANS ROBERTSON LLP","Services - Professional Fees","5891.00","0.00","6012"
"Wolverhampton City Council","http://opendatacommunities.org/id/metropolitan-district-council/wolverhampton","21/03/2017","Financial Services","HYMANS ROBERTSON LLP","Services - Professional Fees","6941.00","0.00","6012"
"Wolverhampton City Council","http://opendatacommunities.org/id/metropolitan-district-council/wolverhampton","21/03/2017","Financial Services","HYMANS ROBERTSON LLP","Services - Professional Fees","15741.00","0.00","6012"
"Wolverhampton City Council","http://opendatacommunities.org/id/metropolitan-district-council/wolverhampton","21/03/2017","LGPS Central","IRG Advisors t/a Odgers Berndtson","Staff Advertising Costs","6000.00","0.00","7361"
"Wolverhampton City Council","http://opendatacommunities.org/id/metropolitan-district-council/wolverhampton","21/03/2017","LGPS Central","IRG Advisors t/a Odgers Berndtson","Staff Advertising Costs","6500.00","0.00","7361"
"Wolverhampton City Council","http://opendatacommunities.org/id/metropolitan-district-council/wolverhampton","21/03/2017","LGPS Central","IRG Advisors t/a Odgers Berndtson","Staff Advertising Costs","11700.00","0.00","7361"
"Wolverhampton City Council","http://opendatacommunities.org/id/metropolitan-district-council/wolverhampton","21/03/2017","LGPS Central","IRG Advisors t/a Odgers Berndtson","Staff Advertising Costs","3641.66","0.00","7361"
"Wolverhampton City Council","http://opendatacommunities.org/id/metropolitan-district-council/wolverhampton","21/03/2017","LGPS Central","IRG Advisors t/a Odgers Berndtson","Staff Advertising Costs","3641.66","0.00","7361"
"Wolverhampton City Council","http://opendatacommunities.org/id/metropolitan-district-council/wolverhampton","09/02/2017","LGPS Central","IRG Advisors t/a Odgers Berndtson","Services - Professional Fees","8062.50","0.00","7361"
"Wolverhampton City Council","http://opendatacommunities.org/id/metropolitan-district-council/wolverhampton","01/03/2017","Governance","Kaizen Consultants","Printing","936.00","0.00","2741"
"Wolverhampton City Council","http://opendatacommunities.org/id/metropolitan-district-council/wolverhampton","01/03/2017","Governance","Kaizen Consultants","Printing","1147.00","0.00","2741"
"Wolverhampton City Council","http://opendatacommunities.org/id/metropolitan-district-council/wolverhampton","24/03/2017","Financial Services","Kaplan Financial","Training Expenses","576.67","0.00","8299"
"Wolverhampton City Council","http://opendatacommunities.org/id/metropolitan-district-council/wolverhampton","10/03/2017","Governance","KONICA MINOLTA BUS.SOLUTIONS(UK)LTD.","Printing","1916.70","0.00","2741"
"Wolverhampton City Council","http://opendatacommunities.org/id/metropolitan-district-council/wolverhampton","03/04/2017","Investment - Revenue","KPMG LLP FEES ACCOUNT","Services - Professional Fees","23700.00","0.00","8999"
"Wolverhampton City Council","http://opendatacommunities.org/id/metropolitan-district-council/wolverhampton","14/02/2017","Investment - Revenue","KPMG LLP FEES ACCOUNT","Services - Professional Fees","31000.00","0.00","8999"
"Wolverhampton City Council","http://opendatacommunities.org/id/metropolitan-district-council/wolverhampton","03/04/2017","Investments Fund Account","LINEDATA LIMITED","Computing - Maint Agreements","55877.05","0.00","5045"
"Wolverhampton City Council","http://opendatacommunities.org/id/metropolitan-district-council/wolverhampton","28/02/2017","Investments Fund Account","LONDON STOCK EXCHANGE PLC","Services - General Licences","591.78","0.00","6012"
"Wolverhampton City Council","http://opendatacommunities.org/id/metropolitan-district-council/wolverhampton","30/01/2017","Pension Operations","NEOPOST LIMITED","Comms - Postage","897.75","0.00","5111"
"Wolverhampton City Council","http://opendatacommunities.org/id/metropolitan-district-council/wolverhampton","03/02/2017","Pension Operations","Pension Management Institute","Training Expenses","1520.00","0.00","8299"
"Wolverhampton City Council","http://opendatacommunities.org/id/metropolitan-district-council/wolverhampton","14/02/2017","Governance","PLANit Global Ltd","Staff Advertising Costs","900.00","0.00","8999"
"Wolverhampton City Council","http://opendatacommunities.org/id/metropolitan-district-council/wolverhampton","24/03/2017","Investment - Revenue","Portfolio Evalutaion Limited","Services - Professional Fees","5568.50","0.00","8999"
"Wolverhampton City Council","http://opendatacommunities.org/id/metropolitan-district-council/wolverhampton","01/03/2017","Pension Operations","PR Gay","Training Expenses","529.80","0.00","8299"
"Wolverhampton City Council","http://opendatacommunities.org/id/metropolitan-district-council/wolverhampton","01/03/2017","LGPS Central","PRICE WATERHOUSE COOPERS","Services - Professional Fees","35108.00","0.00","8931"
"Wolverhampton City Council","http://opendatacommunities.org/id/metropolitan-district-council/wolverhampton","10/02/2017","LGPS Central","PRICE WATERHOUSE COOPERS","Services - Professional Fees","43550.00","0.00","8931"
"Wolverhampton City Council","http://opendatacommunities.org/id/metropolitan-district-council/wolverhampton","05/04/2017","Governance","ROYAL MAIL GROUP PLC","Comms - Postage","930.44","0.00","9402"
"Wolverhampton City Council","http://opendatacommunities.org/id/metropolitan-district-council/wolverhampton","20/03/2017","Governance","ROYAL MAIL GROUP PLC","Comms - Postage","708.96","0.00","9402"
"Wolverhampton City Council","http://opendatacommunities.org/id/metropolitan-district-council/wolverhampton","30/01/2017","Property and legal fees","Shakespeare Martineau LLP","Property Management - Legal Expenses","1705.50","0.00","8111"
"Wolverhampton City Council","http://opendatacommunities.org/id/metropolitan-district-council/wolverhampton","09/02/2017","Investment - Revenue","SQUIRE,SANDERS & DEMPSEY (UK) LLP","Services - Professional Fees","5000.00","0.00","8111"
"Wolverhampton City Council","http://opendatacommunities.org/id/metropolitan-district-council/wolverhampton","20/03/2017","Property and legal fees","SQUIRE,SANDERS & DEMPSEY (UK) LLP","Property Management - Legal Expenses","1995.00","0.00","8111"
"Wolverhampton City Council","http://opendatacommunities.org/id/metropolitan-district-council/wolverhampton","20/03/2017","Property and legal fees","SQUIRE,SANDERS & DEMPSEY (UK) LLP","Property Management - Legal Expenses","1439.70","0.00","8111"
"Wolverhampton City Council","http://opendatacommunities.org/id/metropolitan-district-council/wolverhampton","15/03/2017","Pension Operations","Star Actuarial Futures","Staff Advertising Costs","5000.00","0.00","7361"
"Wolverhampton City Council","http://opendatacommunities.org/id/metropolitan-district-council/wolverhampton","09/02/2017","Investment - Revenue","Tedmoor Consultancy Ltd","Services - Professional Fees","3950.00","0.00","8999"
"Wolverhampton City Council","http://opendatacommunities.org/id/metropolitan-district-council/wolverhampton","06/03/2017","Investments Fund Account","The Financial Times Limited","Subscriptions","2401.00","0.00","5192"
"Wolverhampton City Council","http://opendatacommunities.org/id/metropolitan-district-council/wolverhampton","18/02/2017","Property and legal fees","Trowers & Hamlins LLP","Property Management - Legal Expenses","1118.90","0.00","8111"
"Wolverhampton City Council","http://opendatacommunities.org/id/metropolitan-district-council/wolverhampton","18/02/2017","Property and legal fees","Trowers & Hamlins LLP","Property Management - Legal Expenses","13188.13","0.00","8111"
"Wolverhampton City Council","http://opendatacommunities.org/id/metropolitan-district-council/wolverhampton","18/02/2017","Property and legal fees","Trowers & Hamlins LLP","Property Management - Legal Expenses","850.71","0.00","8111"
"Wolverhampton City Council","http://opendatacommunities.org/id/metropolitan-district-council/wolverhampton","18/02/2017","Property and legal fees","Trowers & Hamlins LLP","Property Management - Legal Expenses","1500.00","0.00","8111"
"Wolverhampton City Council","http://opendatacommunities.org/id/metropolitan-district-council/wolverhampton","18/02/2017","Property and legal fees","Trowers & Hamlins LLP","Property Management - Legal Expenses","5000.00","0.00","8111"
"Wolverhampton City Council","http://opendatacommunities.org/id/metropolitan-district-council/wolverhampton","18/02/2017","Property and legal fees","Trowers & Hamlins LLP","Property Management - Legal Expenses","7601.60","0.00","8111"
"Wolverhampton City Council","http://opendatacommunities.org/id/metropolitan-district-council/wolverhampton","18/02/2017","Property and legal fees","Trowers & Hamlins LLP","Property Management - Legal Expenses","4250.00","0.00","8111"
"Wolverhampton City Council","http://opendatacommunities.org/id/metropolitan-district-council/wolverhampton","18/02/2017","Property and legal fees","Trowers & Hamlins LLP","Property Management - Legal Expenses","3500.00","0.00","8111"
"Wolverhampton City Council","http://opendatacommunities.org/id/metropolitan-district-council/wolverhampton","18/02/2017","Property and legal fees","Trowers & Hamlins LLP","Property Management - Legal Expenses","688.70","0.00","8111"
"Wolverhampton City Council","http://opendatacommunities.org/id/metropolitan-district-council/wolverhampton","18/02/2017","Property and legal fees","Trowers & Hamlins LLP","Property Management - Legal Expenses","1948.35","0.00","8111"
"Wolverhampton City Council","http://opendatacommunities.org/id/metropolitan-district-council/wolverhampton","24/01/2017","Pension Operations","UK MAIL LTD/BUSINESSPOST INTERNATNL.","Comms - Postage","2356.86","0.00","4215"
"Wolverhampton City Council","http://opendatacommunities.org/id/metropolitan-district-council/wolverhampton","20/04/2017","Pension Operations","Yoo","Agency Staff","3974.65","0.00","7361"
"Wolverhampton City Council","http://opendatacommunities.org/id/metropolitan-district-council/wolverhampton","04/04/2017","Pension Operations","Yoo","Agency Staff","4381.84","0.00","7361"
"Wolverhampton City Council","http://opendatacommunities.org/id/metropolitan-district-council/wolverhampton","21/03/2017","Pension Operations","Yoo","Agency Staff","3205.94","0.00","7361"
"Wolverhampton City Council","http://opendatacommunities.org/id/metropolitan-district-council/wolverhampton","13/04/2017","Pension Operations","Yoo","Agency Staff","4404.30","0.00","7361"
"Wolverhampton City Council","http://opendatacommunities.org/id/metropolitan-district-council/wolverhampton","07/03/2017","Pension Operations","Yoo","Agency Staff","2313.65","0.00","7361"
